bitfinex-derivatives/quotes_BNBF0:USTF0_20250220
["timestamp","ask_amount","ask_price","bid_price","bid_amount"]
[1740080922405,3.04150277,655.02,654.61,1.130437]
[1740080922609,3.04150277,655.01,654.61,1.130437]
[1740080922806,3.04150277,655.0,654.61,1.130437]
[1740080923006,3.04150277,654.99,654.61,1.130437]
[1740080923208,2.21359305,655.02,654.61,1.130437]
[1740080923513,3.03871015,655.01,654.59,1.130437]
[1740080923713,3.03871015,655.0,654.59,1.130437]
[1740080923905,3.03871015,654.99,654.59,1.130437]
[1740080924109,3.03871015,654.98,654.59,1.130437]
[1740080924309,3.03871015,654.97,654.59,1.130437]
[1740080924504,3.03871015,654.96,654.59,1.130437]
[1740080924810,3.03871015,654.95,654.59,1.130437]
[1740080925007,2.21359305,654.97,654.59,1.130437]
[1740080925205,3.03877649,654.96,654.59,1.130437]
[1740080925413,3.03864077,654.95,654.59,1.130437]
[1740080925607,2.21359305,654.97,654.59,1.130437]
[1740080925810,3.03866029,654.96,654.59,1.130437]
[1740080926006,3.03869586,654.95,654.59,1.130437]
[1740080926209,3.03870518,654.94,654.59,1.130437]
[1740080926406,2.21359305,654.97,654.59,1.130437]
[1740080926609,2.21359305,654.94,654.59,1.130437]
[1740080927307,2.21359305,654.94,654.53,0.30556277]
[1740080928012,1.908,655.26,654.53,0.30556277]
[1740080928214,3.03871334,655.25,654.53,0.30556277]
[1740080928513,5.25034112,655.24,654.53,0.30556277]
[1740080928714,3.03871334,655.23,654.53,0.30556277]
[1740080928914,3.03871334,655.22,654.53,0.30556277]
[1740080929117,3.03871334,655.21,654.53,0.30556277]
[1740080929315,3.03871334,655.2,654.53,0.30556277]
[1740080929511,3.03871334,655.19,654.66,1.130437]
[1740080929712,3.03871334,655.18,654.66,1.130437]
[1740080930011,3.03871334,655.17,654.66,1.130437]
[1740080930214,3.03871334,655.16,654.66,1.130437]
[1740080930413,3.03871334,655.15,654.66,1.130437]
[1740080930610,3.03871334,655.14,654.66,1.130437]
[1740080930815,3.03871334,655.13,654.66,1.130437]
[1740080931015,3.03871334,655.12,654.66,1.130437]
[1740080931316,3.03871334,655.11,654.66,1.130437]
[1740080931514,3.03871334,655.1,654.66,1.130437]
[1740080931712,3.03871334,655.09,654.66,1.130437]
[1740080931910,3.03871334,655.08,654.66,1.130437]
[1740080932111,3.03871334,655.07,654.66,1.130437]
[1740080932315,3.03871334,655.06,654.66,1.130437]
[1740080932516,3.03871334,655.05,654.66,1.130437]
[1740080932715,5.25034112,655.04,654.66,1.130437]
[1740080932915,3.03871334,655.03,654.66,1.130437]
[1740080933212,3.03871334,655.02,654.66,1.130437]
[1740080933416,3.03871334,655.01,654.66,1.130437]
[1740080933617,3.03871334,655.0,654.66,1.130437]
[1740080933818,3.03871334,654.99,654.66,1.130437]
[1740080934021,3.03871334,654.98,654.66,1.130437]
[1740080934318,3.03871334,654.97,654.66,1.130437]
[1740080934520,3.03871334,654.96,654.66,1.130437]
[1740080934721,3.03871334,654.95,654.65,1.130437]
[1740080934917,3.03871334,654.94,654.65,1.130437]
[1740080935221,3.03871334,654.93,654.65,1.130437]
[1740080935415,3.03871334,654.92,654.65,1.130437]
[1740080935614,3.03964584,654.91,654.65,1.130437]
[1740080935818,2.21162778,654.95,654.65,1.130437]
[1740080936019,3.03965001,654.94,654.65,1.130437]
[1740080936215,3.03965001,654.93,654.65,1.130437]
[1740080936518,3.03965001,654.92,654.65,1.130437]
[1740080936715,3.03983307,654.91,654.65,1.130437]
[1740080936915,2.21162778,654.93,654.65,1.130437]
[1740080937118,3.03982077,654.92,654.65,1.130437]
[1740080937319,2.21162778,654.93,654.65,1.130437]
[1740080937520,3.03993118,654.92,654.65,1.130437]
[1740080937721,2.21162778,654.93,654.65,1.130437]
[1740080938122,3.03990522,654.92,654.54,1.130437]
[1740080938318,2.022,655.28,654.54,1.130437]
[1740080938516,3.04005719,655.27,654.54,1.130437]
[1740080938719,3.04005719,655.26,654.54,1.130437]
[1740080938917,3.04005719,655.25,654.54,1.130437]
[1740080939122,3.04005719,655.24,654.54,1.130437]
[1740080939421,3.04005719,655.23,654.54,1.130437]
[1740080939623,3.04005719,655.22,654.54,1.130437]
[1740080939923,3.04005719,655.21,654.54,1.130437]
[1740080940224,3.04005719,655.2,654.54,1.130437]
[1740080940423,3.04005719,655.19,654.58,1.130437]
[1740080940618,3.04005719,655.18,654.58,1.130437]
[1740080940819,3.04005719,655.17,654.58,1.130437]
[1740080941020,3.04005719,655.16,654.58,1.130437]
[1740080941222,3.04005719,655.15,654.58,1.130437]
[1740080941418,3.04005719,655.14,654.58,1.130437]
[1740080941622,3.04005719,655.13,654.58,1.130437]
[1740080941819,3.04005719,655.12,654.58,1.130437]
[1740080942123,3.04005719,655.11,654.58,1.130437]
[1740080942319,3.04005719,655.1,654.62,1.130437]
[1740080942519,3.04005719,655.09,654.62,1.130437]
[1740080942725,3.04005719,655.08,654.62,1.130437]
[1740080943025,3.04005719,655.07,654.62,1.130437]
[1740080943225,3.04005719,655.06,654.62,1.130437]
[1740080943425,3.04005719,655.05,654.62,1.130437]
[1740080943625,3.04005719,655.04,654.62,1.130437]
[1740080943823,3.04005719,655.03,654.62,1.130437]
[1740080944019,3.04005719,655.02,654.62,1.130437]
[1740080944219,2.21254557,655.1,654.62,1.130437]
[1740080944422,3.0388389,655.09,654.62,1.130437]
[1740080944628,3.0388389,655.08,654.62,1.130437]
[1740080944825,3.0388389,655.07,654.62,1.130437]
[1740080945124,2.21254557,655.09,654.67,1.130437]
[1740080945125,3.0388389,655.06,654.67,1.130437]
[1740080945321,2.21254557,655.09,654.67,1.130437]
[1740080945322,3.0388389,655.05,654.67,1.130437]
[1740080945526,3.0388389,655.04,654.67,1.130437]
[1740080945726,3.0388389,655.03,654.67,1.130437]
[1740080945922,3.0388389,655.02,654.67,1.130437]
[1740080946127,2.21254557,655.04,654.67,1.130437]
[1740080946323,3.03849906,655.03,654.67,1.130437]
[1740080946627,3.03849906,655.02,654.67,1.130437]
[1740080946822,2.21254557,655.04,654.67,1.130437]
[1740080947026,3.03846751,655.03,654.67,1.130437]
[1740080947226,5.25101308,655.02,654.67,1.130437]
[1740080947427,2.21254557,655.02,654.59,1.130437]
[1740080948429,1.797,655.29,654.59,1.130437]
[1740080948630,3.03806514,655.28,654.59,1.130437]
[1740080948831,3.03806514,655.27,654.59,1.130437]
[1740080949130,3.03806514,655.26,654.59,1.130437]
[1740080949326,3.03806514,655.25,654.59,1.130437]
[1740080949632,3.03806514,655.24,654.59,1.130437]
[1740080949825,3.03806514,655.23,654.59,1.130437]
[1740080950028,3.03806514,655.22,654.59,1.130437]
[1740080950229,3.03806514,655.21,654.59,1.130437]
[1740080950427,3.03806514,655.2,654.59,1.130437]
[1740080950733,3.03806514,655.19,654.59,1.130437]
[1740080950930,3.03806514,655.18,654.59,1.130437]
[1740080951131,3.03806514,655.17,654.59,1.130437]
[1740080951331,3.03806514,655.16,654.59,1.130437]
[1740080951530,3.03806514,655.15,654.59,1.130437]
[1740080951732,3.03806514,655.14,654.59,1.130437]
[1740080951930,3.03806514,655.13,654.73,1.130437]
[1740080952131,3.03806514,655.12,654.73,1.130437]
[1740080952329,3.03806514,655.11,654.73,1.130437]
[1740080952531,3.03806514,655.1,654.73,1.130437]
[1740080952732,3.03806514,655.09,654.73,1.130437]
[1740080952932,1.797,655.29,654.73,1.130437]
[1740080953132,3.03752369,655.28,654.73,1.130437]
[1740080953333,1.602,655.36,654.73,1.130437]
[1740080953334,3.03752369,655.27,654.73,1.130437]
[1740080953532,3.03752369,655.26,654.73,1.130437]
[1740080953728,3.03752369,655.25,654.73,1.130437]
[1740080953935,3.03752369,655.24,654.73,1.130437]
[1740080954136,3.03752369,655.23,654.73,1.130437]
[1740080954329,2.21045839,655.27,654.74,1.130437]
[1740080954330,3.03752369,655.22,654.74,1.130437]
[1740080954532,3.03752369,655.21,654.74,1.130437]
[1740080954732,5.24798208,655.2,654.74,1.130437]
[1740080954929,3.03752369,655.19,654.74,1.130437]
[1740080955237,2.21045839,655.2,654.74,1.130437]
[1740080955238,3.03752369,655.18,654.74,1.130437]
[1740080955531,3.03752369,655.17,654.74,1.130437]
[1740080955737,3.03752369,655.16,654.74,1.130437]
[1740080955933,3.03752369,655.15,654.74,1.130437]
[1740080956131,3.03752369,655.14,654.74,1.130437]
[1740080956333,3.03752369,655.13,654.74,1.130437]
[1740080956534,3.03752369,655.12,654.74,1.130437]
[1740080956732,3.03752369,655.11,654.74,1.130437]
[1740080956934,3.03752369,655.1,654.74,1.130437]
[1740080957139,3.03752369,655.09,654.74,1.130437]
[1740080957334,2.21045839,655.11,654.74,1.130437]
[1740080957537,3.03692152,655.1,654.74,1.130437]
[1740080957737,3.03692152,655.1,654.53,0.30556277]
[1740080957738,2.21045839,655.11,654.77,1.130437]
[1740080958543,1.602,655.36,654.77,1.130437]
[1740080958739,3.03654859,655.35,654.77,1.130437]
[1740080958940,3.03654859,655.34,654.77,1.130437]
[1740080959135,3.03654859,655.33,654.77,1.130437]
[1740080959334,3.03654859,655.32,654.77,1.130437]
[1740080959541,3.03654859,655.31,654.77,1.130437]
[1740080959840,3.03654859,655.3,654.77,1.130437]
[1740080960034,3.03654859,655.29,654.77,1.130437]
[1740080960242,3.03654859,655.28,654.77,1.130437]
[1740080960437,3.03654859,655.27,654.77,1.130437]
[1740080960643,3.03654859,655.26,654.77,1.130437]
[1740080960837,3.03654859,655.25,654.77,1.130437]
[1740080961142,5.24633218,655.24,654.61,1.130437]
[1740080961336,3.03654859,655.23,654.62,0.30552076]
[1740080961540,3.03654859,655.22,654.62,0.30552076]
[1740080961742,3.03654859,655.21,654.62,0.30552076]
[1740080961945,3.03654859,655.2,654.62,0.30552076]
[1740080962242,3.03654859,655.19,654.62,0.30552076]
[1740080962443,3.03654859,655.18,654.62,0.30552076]
[1740080962635,3.03654859,655.17,654.62,0.30552076]
[1740080962841,3.03654859,655.16,654.62,0.30552076]
[1740080963038,3.03654859,655.15,654.62,0.30552076]
[1740080963240,3.03654859,655.14,654.62,0.30552076]
[1740080963437,2.20978359,655.18,654.62,0.30552076]
[1740080963638,3.03594486,655.17,654.64,1.130437]
[1740080963836,3.03594486,655.16,654.65,0.30550675]
[1740080964036,3.03594486,655.15,654.65,0.30550675]
[1740080964236,3.03594486,655.14,654.65,0.30550675]
[1740080964440,2.20978359,655.18,654.65,0.30550675]
[1740080964636,3.03595767,655.17,654.65,0.30550675]
[1740080964843,3.03595767,655.16,654.65,0.30550675]
[1740080965043,3.03595767,655.15,654.65,0.30550675]
[1740080965244,5.24529835,655.14,654.65,0.30550675]
[1740080965439,3.03595767,655.13,654.65,0.30550675]
[1740080965640,3.0360008,655.12,654.65,0.30550675]
[1740080965837,2.20934068,655.14,654.65,0.30550675]
[1740080966041,3.0360025,655.13,654.65,0.30550675]
[1740080966241,2.20934068,655.14,654.65,0.30550675]
[1740080966439,3.03604284,655.13,654.81,1.130437]
[1740080966638,3.03608692,655.12,654.81,1.130437]
[1740080966942,2.20934068,655.14,654.81,1.130437]
[1740080967138,2.20934068,655.11,654.81,1.130437]
[1740080968546,1.602,655.36,654.81,1.130437]
[1740080968746,3.03631335,655.35,654.81,1.130437]
[1740080969045,3.03631335,655.34,654.81,1.130437]
[1740080969245,3.03631335,655.33,654.81,1.130437]
[1740080969545,3.03631335,655.32,654.81,1.130437]
[1740080969746,3.03631335,655.31,654.81,1.130437]
[1740080969945,3.03631335,655.3,654.81,1.130437]
[1740080970146,3.03631335,655.29,654.81,1.130437]
[1740080970448,3.03631335,655.28,654.81,1.130437]
[1740080970647,3.03631335,655.27,654.81,1.130437]
[1740080970945,3.03631335,655.26,654.81,1.130437]
[1740080971145,3.03631335,655.25,654.81,1.130437]
[1740080971346,3.03631335,655.24,654.81,1.130437]
[1740080971548,3.03631335,655.23,654.81,1.130437]
[1740080971843,2.20961167,655.29,654.81,1.130437]
[1740080971844,3.03631335,655.22,654.81,1.130437]
[1740080972050,3.03631335,655.21,654.81,1.130437]
[1740080972247,3.03631335,655.2,654.81,1.130437]
[1740080972448,3.03631335,655.19,654.81,1.130437]
[1740080972750,3.03631335,655.18,654.81,1.130437]
[1740080972951,3.03631335,655.17,654.85,1.130437]
[1740080973150,2.20961167,655.2,654.85,1.130437]
[1740080973151,3.03631335,655.16,654.85,1.130437]
[1740080973347,3.03631335,655.15,654.85,1.130437]
[1740080973653,3.03631335,655.14,654.85,1.130437]
[1740080973846,3.03631335,655.13,654.85,1.130437]
[1740080974049,3.03634812,655.12,654.85,1.130437]
[1740080974346,2.20961167,655.2,654.85,1.130437]
[1740080974551,3.0363361,655.19,654.85,1.130437]
[1740080974844,3.0363361,655.18,654.85,1.130437]
[1740080975049,3.0363361,655.17,654.85,1.130437]
[1740080975251,3.0363361,655.16,654.85,1.130437]
[1740080975447,3.0363361,655.15,654.85,1.130437]
[1740080975648,3.0363361,655.14,654.85,1.130437]
[1740080975951,3.0363361,655.13,654.85,1.130437]
[1740080976147,3.0363361,655.12,654.85,1.130437]
[1740080976352,2.20961167,655.13,654.85,1.130437]
[1740080976553,3.03638377,655.12,654.85,1.130437]
[1740080976752,2.20961167,655.13,654.85,1.130437]
[1740080977148,2.20961167,655.13,654.7,1.130437]
[1740080977748,1.927,655.4,654.7,1.130437]
[1740080977749,2.20961167,655.12,654.7,1.130437]
[1740080979053,2.20961167,655.11,654.7,1.130437]
[1740080980454,2.20961167,655.11,654.65,0.30550675]
[1740080981255,1.27,655.45,654.65,0.30550675]
[1740080981446,3.03622062,655.4,654.65,0.30550675]
[1740080981651,3.03622062,655.39,654.65,0.30550675]
[1740080981846,3.03622062,655.38,654.65,0.30550675]
[1740080982053,3.03622062,655.37,654.65,0.30550675]
[1740080982254,3.03622062,655.36,654.65,0.30550675]
[1740080982452,3.03622062,655.35,654.65,0.30550675]
[1740080982653,3.03622062,655.34,654.65,0.30550675]
[1740080982955,3.03622062,655.33,654.65,0.30550675]
[1740080983155,3.03622062,655.32,654.65,0.30550675]
[1740080983347,3.03622062,655.31,654.65,0.30550675]
[1740080983550,3.03622062,655.3,654.75,1.130437]
[1740080983753,3.03622062,655.29,654.75,1.130437]
[1740080983954,3.03622062,655.28,654.75,1.130437]
[1740080984156,3.03622062,655.27,654.75,1.130437]
[1740080984457,2.20955117,655.3,654.75,1.130437]
[1740080984653,3.03631708,655.29,654.75,1.130437]
[1740080984853,3.03631708,655.28,654.75,1.130437]
[1740080985054,3.03631708,655.27,654.75,1.130437]
[1740080985255,2.20955117,655.3,654.75,1.130437]
[1740080985456,3.03635685,655.29,654.75,1.130437]
[1740080985759,3.03635685,655.28,654.75,1.130437]
[1740080985961,3.03635685,655.27,654.77,1.130437]
[1740080986252,3.03635685,655.26,654.77,1.130437]
[1740080986458,3.03635685,655.25,654.77,1.130437]
[1740080986659,3.03635685,655.24,654.77,1.130437]
[1740080986859,3.03635685,655.23,654.77,1.130437]
[1740080987059,3.03635685,655.22,654.77,1.130437]
[1740080987254,3.03635685,655.21,654.77,1.130437]
[1740080987454,3.03635685,655.2,654.77,1.130437]
[1740080987759,3.03635685,655.19,654.77,1.130437]
[1740080987959,3.03635685,655.18,654.77,1.130437]
[1740080988155,3.03635685,655.17,654.77,1.130437]
[1740080988359,3.03635685,655.16,654.77,1.130437]
[1740080988555,3.03635685,655.15,654.72,1.130437]
[1740080988760,3.03635685,655.14,654.72,1.130437]
[1740080988961,3.03635685,655.13,654.72,1.130437]
[1740080989162,3.03635685,655.12,654.72,1.130437]
[1740080989462,3.03635685,655.11,654.72,1.130437]
[1740080989654,2.20955117,655.13,654.72,1.130437]
[1740080989853,3.03714149,655.12,654.72,1.130437]
[1740080990057,2.20955117,655.13,654.72,1.130437]
[1740080990256,3.0370687,655.12,654.72,1.130437]
[1740080990458,3.0370687,655.11,654.72,1.130437]
[1740080990660,2.20955117,655.13,654.72,1.130437]
[1740080990858,2.20955117,655.13,654.65,0.30550675]
[1740080990859,3.03742169,655.12,654.73,1.130437]
[1740080991161,3.03742169,655.11,654.73,1.130437]
[1740080991462,3.03779696,655.1,654.73,1.130437]
[1740080991661,2.20955117,655.11,654.73,1.130437]
[1740080992063,3.03779612,655.1,654.73,1.130437]
[1740080992362,2.20955117,655.11,654.73,1.130437]
[1740080993263,1.27,655.45,654.73,1.130437]
[1740080993460,3.03862494,655.44,654.73,1.130437]
[1740080993664,5.24990482,655.43,654.74,1.130437]
[1740080993866,3.03862494,655.42,654.74,1.130437]
[1740080994064,3.03862494,655.41,654.74,1.130437]
[1740080994264,3.03862494,655.4,654.74,1.130437]
[1740080994459,3.03862494,655.39,654.74,1.130437]
[1740080994663,3.03862494,655.38,654.74,1.130437]
[1740080994864,3.03862494,655.37,654.74,1.130437]
[1740080995064,3.03862494,655.36,654.74,1.130437]
[1740080995261,3.03862494,655.35,654.74,1.130437]
[1740080995465,3.03862494,655.34,654.74,1.130437]
[1740080995660,3.03862494,655.33,654.74,1.130437]
[1740080995864,3.03862494,655.32,654.74,1.130437]
[1740080996061,3.03862494,655.31,654.74,1.130437]
[1740080996266,2.21127988,655.36,654.74,1.130437]
[1740080996267,3.03862494,655.3,654.74,1.130437]
[1740080996465,3.03862494,655.29,654.74,1.130437]
[1740080996661,3.03862494,655.28,654.9,1.130437]
[1740080996866,3.03862494,655.27,654.9,1.130437]
[1740080997161,3.03862494,655.26,654.9,1.130437]
[1740080997366,3.03862494,655.25,654.9,1.130437]
[1740080997667,3.03862494,655.24,654.9,1.130437]
[1740080997962,3.03862494,655.23,654.9,1.130437]
[1740080998165,3.03862494,655.22,654.9,1.130437]
[1740080998365,3.03862494,655.21,654.9,1.130437]
[1740080998667,3.03862494,655.2,654.9,1.130437]
[1740080998968,3.03862494,655.19,654.97,1.130437]
[1740080999165,3.03862494,655.18,654.97,1.130437]
[1740080999361,3.03862494,655.17,654.97,1.130437]
[1740080999563,3.03862494,655.16,654.97,1.130437]
[1740080999759,3.03862494,655.15,654.97,1.130437]
[1740081000061,3.03862494,655.14,654.97,1.130437]
[1740081000266,3.03862494,655.13,654.97,1.130437]
[1740081000465,3.03862494,655.12,654.97,1.130437]
[1740081000761,3.03862494,655.11,654.97,1.130437]
[1740081000966,2.21127988,655.1,654.97,1.130437]
[1740081001368,2.21127988,655.1,654.98,1.130437]
[1740081002866,3.397,655.47,654.98,1.130437]
[1740081003063,6.09109858,655.46,654.81,1.130437]
[1740081003268,3.04330678,655.45,654.81,1.130437]
[1740081003566,3.04330678,655.44,654.81,1.130437]
[1740081003767,3.04330678,655.43,654.81,1.130437]
[1740081003963,3.04330678,655.42,654.81,1.130437]
[1740081004167,3.04330678,655.41,654.81,1.130437]
[1740081004368,3.04330678,655.4,654.81,1.130437]
[1740081004565,3.04330678,655.39,654.81,1.130437]
[1740081004771,3.04330678,655.38,654.81,1.130437]
[1740081004973,3.04330678,655.37,654.81,1.130437]
[1740081005177,3.04330678,655.36,654.81,1.130437]
[1740081005378,3.04330678,655.35,654.83,1.130437]
[1740081005580,3.04330678,655.34,654.83,1.130437]
[1740081005879,2.21468997,655.39,654.83,1.130437]
[1740081006078,3.0436432,655.38,654.83,1.130437]
[1740081006373,3.0436432,655.37,654.83,1.130437]
[1740081006579,2.21468997,655.38,654.83,1.130437]
[1740081006779,3.04329805,655.37,654.83,1.130437]
[1740081006974,3.04329805,655.36,654.84,0.30541811]
[1740081007278,3.04329805,655.35,654.84,0.30541811]
[1740081007476,3.04329805,655.34,654.84,0.30541811]
[1740081007676,3.04329805,655.33,654.84,0.30541811]
[1740081007877,3.04329805,655.32,654.84,0.30541811]
[1740081008075,2.21468997,655.38,654.84,0.30541811]
[1740081008076,3.04329805,655.31,654.84,0.30541811]
[1740081008279,3.04329805,655.3,654.84,0.30541811]
[1740081008573,3.04329805,655.29,654.84,0.30541811]
[1740081008779,2.21468997,655.3,654.84,0.30541811]
[1740081008780,3.04329805,655.28,654.84,0.30541811]
[1740081008977,3.04329805,655.27,654.84,0.30541811]
[1740081009177,3.04329805,655.26,654.84,0.30541811]
[1740081009479,3.04329805,655.25,654.84,0.30541811]
[1740081009680,3.04329805,655.24,654.84,0.30541811]
[1740081009877,3.04329805,655.23,654.84,0.30541811]
[1740081010077,3.04329805,655.22,654.84,0.30541811]
[1740081010377,3.04329805,655.21,654.84,0.30541811]
[1740081010574,3.04329805,655.2,654.84,0.30541811]
[1740081010880,3.04280021,655.19,654.84,0.30541811]
[1740081011078,3.04280021,655.18,654.84,0.30541811]
[1740081011279,3.397,655.47,654.84,0.30541811]
[1740081011479,3.0427667,655.46,654.84,0.30541811]
[1740081011679,3.0427667,655.45,654.84,0.30541811]
[1740081011875,3.0427667,655.44,654.84,0.30541811]
[1740081012075,3.0427667,655.43,654.84,0.30541811]
[1740081012278,3.0427667,655.42,654.84,0.30541811]
[1740081012475,3.0427667,655.41,654.84,0.30541811]
[1740081012681,3.0427667,655.4,654.84,0.30541811]
[1740081012876,3.0427667,655.39,654.84,0.30541811]
[1740081013075,3.0427667,655.38,654.84,0.30541811]
[1740081013275,3.0427667,655.37,654.84,0.30541811]
[1740081013475,3.0427667,655.36,654.84,0.30541811]
[1740081013679,3.0427667,655.35,654.84,0.30541811]
[1740081013875,3.0427667,655.34,654.84,0.30541811]
[1740081014180,3.0427667,655.33,654.84,0.30541811]
[1740081014381,2.21425441,655.38,654.84,0.30541811]
[1740081014382,3.0427667,655.32,654.84,0.30541811]
[1740081014581,3.0427667,655.31,654.84,0.30541811]
[1740081014782,3.0427667,655.3,654.84,0.30541811]
[1740081014981,3.0427667,655.29,654.84,0.30541811]
[1740081015288,3.0427667,655.28,654.84,0.30541811]
[1740081015479,3.0427667,655.27,654.84,0.30541811]
[1740081015675,3.0427667,655.26,654.84,0.30541811]
[1740081015876,3.0427667,655.25,654.84,0.30541811]
[1740081016077,3.0427667,655.24,654.84,0.30541811]
[1740081016277,3.0427667,655.23,654.84,0.30541811]
[1740081016483,3.0427667,655.22,654.84,0.30541811]
[1740081016683,3.0427667,655.21,654.84,0.30541811]
[1740081016883,3.0427667,655.2,654.84,0.30541811]
[1740081017084,2.21425441,655.23,654.84,0.30541811]
[1740081017284,3.04257304,655.22,654.84,0.30541811]
[1740081017478,3.04257304,655.21,654.84,0.30541811]
[1740081017682,3.04257304,655.2,654.98,1.130437]
[1740081017882,2.21425441,655.23,654.98,1.130437]
[1740081018080,3.04245251,655.22,654.98,1.130437]
[1740081018279,3.04245251,655.21,654.98,1.130437]
[1740081018582,3.04245251,655.2,654.98,1.130437]
[1740081018782,3.04245251,655.19,654.98,1.130437]
[1740081018978,3.04245251,655.18,654.98,1.130437]
[1740081019183,3.04245251,655.17,654.98,1.130437]
[1740081019383,3.04245251,655.16,654.98,1.130437]
[1740081019585,3.04245251,655.15,654.98,1.130437]
[1740081019786,2.21404448,655.21,654.96,1.130437]
[1740081019986,3.04255096,655.2,654.96,1.130437]
[1740081020186,2.21404448,655.21,654.96,1.130437]
[1740081020187,3.04255096,655.19,654.96,1.130437]
[1740081020387,3.04255096,655.18,654.96,1.130437]
[1740081020689,3.04255096,655.17,654.96,1.130437]
[1740081020888,3.04255096,655.16,654.96,1.130437]
[1740081021081,2.21404448,655.18,654.96,1.130437]
[1740081021387,3.04253804,655.17,654.96,1.130437]
[1740081021589,3.04253804,655.16,654.96,1.130437]
[1740081021783,2.21404448,655.18,654.96,1.130437]
[1740081021982,3.04248166,655.17,654.96,1.130437]
[1740081022286,2.21404448,655.18,654.96,1.130437]
[1740081022488,3.04240417,655.17,654.96,1.130437]
[1740081022788,0.638,655.59,654.96,1.130437]
[1740081022989,3.04239593,655.58,654.96,1.130437]
[1740081023288,3.04239593,655.57,654.96,1.130437]
[1740081023489,3.04239593,655.56,654.95,1.130437]
[1740081023686,3.04239593,655.55,654.95,1.130437]
[1740081023883,3.04239593,655.54,654.95,1.130437]
[1740081024089,3.04239593,655.53,654.95,1.130437]
[1740081024288,3.04239593,655.52,654.95,1.130437]
[1740081024489,3.04239593,655.51,654.95,1.130437]
[1740081024789,3.04239593,655.5,654.95,1.130437]
[1740081025088,3.04239593,655.49,654.95,1.130437]
[1740081025288,3.04239593,655.48,654.95,1.130437]
[1740081025588,3.04239593,655.47,654.95,1.130437]
[1740081025790,3.04239593,655.46,654.95,1.130437]
[1740081025984,3.04239593,655.45,654.95,1.130437]
[1740081026188,3.04239593,655.44,654.95,1.130437]
[1740081026390,3.04239593,655.43,654.84,1.43585511]
[1740081026591,3.04239593,655.42,654.84,1.43585511]
[1740081026791,3.04239593,655.41,654.84,1.43585511]
[1740081026994,3.04239593,655.4,654.84,1.43585511]
[1740081027288,3.04239593,655.39,654.84,1.43585511]
[1740081027492,3.04239593,655.38,654.84,1.43585511]
[1740081027695,3.04239593,655.37,654.84,1.43585511]
[1740081027892,3.04239593,655.36,654.84,1.43585511]
[1740081028089,3.04239593,655.35,654.84,1.43585511]
[1740081028289,3.04239593,655.34,654.84,1.43585511]
[1740081028489,3.04239593,655.33,654.84,1.43585511]
[1740081028690,3.04239593,655.32,654.84,0.30541811]
[1740081028887,3.04239593,655.31,654.84,0.30541811]
[1740081029187,3.04239593,655.3,654.84,0.30541811]
[1740081029389,3.04239593,655.29,654.84,0.30541811]
[1740081029590,3.04239593,655.28,654.84,0.30541811]
[1740081029794,3.04239593,655.27,654.84,0.30541811]
[1740081029990,3.04239593,655.26,654.84,0.30541811]
[1740081030192,3.04239593,655.25,654.84,0.30541811]
[1740081030395,3.04239593,655.24,654.84,0.30541811]
[1740081030597,3.04239593,655.23,654.84,0.30541811]
[1740081030790,3.04239593,655.22,654.84,0.30541811]
[1740081030990,3.04239593,655.21,654.84,0.30541811]
[1740081031193,2.213911,655.25,654.84,0.30541811]
[1740081031194,3.04239593,655.2,654.84,0.30541811]
[1740081031389,3.04239593,655.19,654.84,0.30541811]
[1740081031596,5.25630693,655.18,654.84,0.30541811]
[1740081031796,3.04239593,655.17,654.84,0.30541811]
[1740081031997,3.04239593,655.16,654.84,0.30541811]
[1740081032198,3.04239593,655.15,654.84,0.30541811]
[1740081032393,3.04169586,655.14,654.84,0.30541811]
[1740081032593,2.213911,655.18,654.84,0.30541811]
[1740081032796,3.04173308,655.17,654.84,0.30541811]
[1740081032997,3.04173308,655.16,654.84,0.30541811]
[1740081033293,5.25564408,655.15,654.84,0.30541811]
[1740081033493,3.04173308,655.14,654.84,0.30541811]
[1740081033693,3.04173308,655.13,654.84,0.30541811]
[1740081033898,2.213911,655.15,654.84,0.30541811]
[1740081034097,3.04180965,655.14,654.84,0.30541811]
[1740081034291,3.04180965,655.13,654.84,0.30541811]
[1740081034497,5.25572065,655.12,654.84,0.30541811]
[1740081034699,2.213911,655.12,654.84,0.30541811]
[1740081036399,0.638,655.59,654.84,0.30541811]
[1740081036599,6.08810725,655.58,654.84,0.30541811]
[1740081036798,3.04183379,655.57,654.84,0.30541811]
[1740081036995,5.25988351,655.58,654.84,0.30541811]
[1740081036996,6.08810725,655.56,654.84,0.30541811]
[1740081037196,3.04183379,655.55,654.84,0.30541811]
[1740081037397,3.04183379,655.54,654.84,0.30541811]